[Event "8. Arber-Schachopen 2019"]
[Site "Bodenmais"]
[Date "2019.07.31"]
[Round "5.20"]
[White "Bielmeier, Ludwig"]
[Black "Vanhee, Lars"]
[Result "1-0"]
[ECO "A04"]
[WhiteElo "2083"]
[BlackElo "1895"]
[Annotator "NA"]
[PlyCount "225"]
[EventDate "2019.07.27"]
[EventCountry "GER"]
[SourceTitle "playchess.com"]
[Source "ChessBase"]
[SourceQuality "1"]
[TimeControl "40/5400+30:1800+30"]

1. Nf3 {[%emt 0:03:09]} f5 {[%emt 0:00:00]} 2. g3 {[%emt 0:00:12]} Nf6 {[%emt 0:00:00]} 3. Bg2 {[%emt 0:00:08]} e6 {[%emt 0:00:01]} 4. O-O {[%emt 0:00:32]} Be7 {[%emt 0:00:08]} 5. c4 {[%emt 0:00:59]} O-O {[%emt 0:00:09]} 6. d3 {[%emt 0:03:32]} d6 {[%emt 0:01:26]} 7. Nc3 {[%emt 0:02:44]} e5 {[%emt 0:02:18]} 8. e4 {[%emt 0:04:48]} fxe4 {[%emt 0:02:45]} 9. dxe4 {[%emt 0:00:31]} Nc6 {[%emt 0:08:38]} 10. h3 {[%emt 0:01:28]} Be6 {[%emt 0:02:25]} 11. b3 {[%emt 0:00:59]} Qe8 {[%emt 0:05:48]} 12. Be3 {[%emt 0:06:42]} Qh5 {[%emt 0:12:30]} 13. Ng5 {[%emt 0:08:36]} Bd7 {[%emt 0:07:49]} 14. Qxh5 {[%emt 0:15:20]} Nxh5 {[%emt 0:00:22]} 15. Nd5 {[%emt 0:00:42]} Rac8 {[%emt 0:05:07]} 16. Nf3 {[%emt 0:02:56]} Nf6 {[%emt 0:03:03]} 17. Bg5 {[%emt 0:04:50]} h6 {[%emt 0:02:39]} 18. Bxf6 {[%emt 0:06:18]} Bxf6 {[%emt 0:00:15]} 19. Rfd1 {[%emt 0:01:44]} Be6 {[%emt 0:02:52]} 20. Rac1 {[%emt 0:12:51]} b6 {[%emt 0:05:17]} 21. Rc3 {[%emt 0:05:24]} a5 {[%emt 0:03:15]} 22. Bf1 {[%emt 0:00:43]} Kf7 {[%emt 0:04:46]} 23. Kg2 {[%emt 0:01:57]} Rfd8 {[%emt 0:02:01]} 24. a3 {[%emt 0:00:24]} Rf8 {[%emt 0:04:54]} 25. b4 {[%emt 0:01:08]} axb4 {[%emt 0:01:01]} 26. axb4 {[%emt 0:00:03]} Bxd5 {[%emt 0:02:12]} 27. cxd5 {[%emt 0:00:45]} Nb8 {[%emt 0:05:18]} 28. Rdc1 {[%emt 0:00:48]} Bd8 {[%emt 0:00:33]} 29. Bb5 {[%emt 0:00:35]} Kg8 {[%emt 0:01:15]} 30. R1c2 {[%emt 0:00:38]} Rf7 {[%emt 0:01:14]} 31. Ra2 {[%emt 0:02:32]} Nd7 {[%emt 0:01:39]} 32. Ne1 {[%emt 0:01:33]} Nf6 {[%emt 0:01:18]} 33. f3 {[%emt 0:01:11]} Kf8 34. Nc2 Ng8 {[%emt 0:03:49]} 35. Ra6 {[%emt 0:02:15]} Rb8 {[%emt 0:00:12]} 36. Rca3 {[%emt 0:01:01]} g6 {[%emt 0:00:57]} 37. Ra2 {[%emt 0:02:33]} Nf6 {[%emt 0:01:52]} 38. Ne1 {[%emt 0:00:36]} Nh5 {[%emt 0:01:27]} 39. Nd3 {[%emt 0:01:20]} Rc8 {[%emt 0:04:59]} 40. Nf2 {[%emt 0:01:29]} g5 {[%emt 0:00:00]} 41. Ng4 {[%emt 0:00:17]} Rh7 {[%emt 0:09:20]} 42. Ne3 Rh8 43. Nf5 {[%emt 0:05:34]} Kf7 {[%emt 0:02:29]} 44. Bd7 {[%emt 0:00:24]} Rb8 {[%emt 0:00:11]} 45. Ra7 {[%emt 0:02:35]} Kg6 {[%emt 0:01:09]} 46. Rc2 {[%emt 0:01:29]} Nf6 {[%emt 0:01:49]} 47. Be6 {[%emt 0:00:36]} Ne8 {[%emt 0:01:44]} 48. Ne3 {[%emt 0:02:25]} h5 {[%emt 0:02:51]} 49. Rc1 Rf8 50. Bf5+ {[%emt 0:00:55]} Kh6 {[%emt 0:01:10]} 51. Kf2 {[%emt 0:00:37]} Rh8 {[%emt 0:00:30]} 52. Ke2 {[%emt 0:00:56]} Ng7 {[%emt 0:01:32]} 53. Bd7 {[%emt 0:01:12]} Kg6 {[%emt 0:01:19]} 54. Nd1 {[%emt 0:00:19]} Rf8 {[%emt 0:00:26]} 55. Nc3 {[%emt 0:00:42]} Ne8 {[%emt 0:01:26]} 56. Nb5 Kf6 57. Rc6 {[%emt 0:01:16]} Ng7 {[%emt 0:01:38]} 58. h4 {[%emt 0:01:47]} gxh4 {[%emt 0:00:35]} 59. gxh4 {[%emt 0:00:06]} Rf7 {[%emt 0:01:10]} 60. Bh3 {[%emt 0:00:28]} Ne8 {[%emt 0:00:41]} 61. Rc1 {[%emt 0:07:47]} Rg7 {[%emt 0:00:44]} 62. Raa1 {[%emt 0:00:49]} Kf7 {[%emt 0:01:31]} 63. Rh1 {[%emt 0:00:35]} Kf8 {[%emt 0:00:25]} 64. Bf1 {[%emt 0:03:06]} Nf6 {[%emt 0:01:07]} 65. Kf2 {[%emt 0:00:23]} Ne8 {[%emt 0:00:36]} 66. Nc3 {[%emt 0:00:29]} Rg6 {[%emt 0:00:33]} 67. Bb5 {[%emt 0:00:24]} Ng7 {[%emt 0:00:49]} 68. Ne2 {[%emt 0:00:14]} Kf7 {[%emt 0:00:50]} 69. Ng3 {[%emt 0:00:17]} Ke7 {[%emt 0:01:14]} 70. Bc6 {[%emt 0:00:29]} Kf7 {[%emt 0:00:22]} 71. Ra7 {[%emt 0:00:49]} Kf8 {[%emt 0:00:36]} 72. Raa1 {[%emt 0:00:19]} Kf7 {[%emt 0:00:02]} 73. Rag1 {[%emt 0:00:46]} Bf6 {[%emt 0:01:04]} 74. Ra1 {[%emt 0:02:07]} Bd8 {[%emt 0:00:08]} 75. Kg2 {[%emt 0:00:27]} Kf8 {[%emt 0:00:39]} 76. Bd7 {[%emt 0:00:15]} Ke7 {[%emt 0:00:55]} 77. Bc6 {[%emt 0:00:39]} Kf8 {[%emt 0:00:10]} 78. Raf1 {[%emt 0:00:27]} Bf6 {[%emt 0:01:13]} 79. Kh3 {[%emt 0:00:21]} Ke7 {[%emt 0:00:24]} 80. Rhg1 {[%emt 0:00:19]} Rg8 {[%emt 0:01:31]} 81. Ra1 {[%emt 0:00:33]} Kf7 {[%emt 0:01:23]} 82. Ra7 {[%emt 0:00:51]} Bd8 {[%emt 0:00:12]} 83. Bd7 {[%emt 0:00:29]} Ke7 {[%emt 0:00:59]} 84. Bc6 {[%emt 0:00:35]} Kf7 {[%emt 0:00:40]} 85. Bd7 {[%emt 0:02:13]} Ke7 {[%emt 0:00:03]} 86. Bc8 {[%emt 0:00:11]} Kf7 {[%emt 0:00:50]} 87. Rc1 {[%emt 0:00:34]} Kf8 {[%emt 0:01:14]} 88. Ra8 {[%emt 0:00:21]} Ke7 {[%emt 0:00:48]} 89. Raa1 {[%emt 0:01:01]} Kf8 {[%emt 0:00:33]} 90. Rg1 {[%emt 0:00:54]} Ke7 {[%emt 0:00:18]} 91. Raf1 {[%emt 0:00:36]} Ke8 {[%emt 0:01:53]} 92. Rg2 {[%emt 0:01:13]} Be7 {[%emt 0:01:02]} 93. Rfg1 {[%emt 0:00:14]} Kf8 {[%emt 0:00:25]} 94. Bd7 {[%emt 0:00:23]} Bd8 {[%emt 0:00:12]} 95. Ra1 {[%emt 0:02:35]} Ke7 {[%emt 0:00:13]} 96. Bf5 {[%emt 0:00:20]} Nxf5 {[%emt 0:03:50]} 97. Nxf5+ {[%emt 0:00:08]} Kf6 {[%emt 0:00:11]} 98. Rxg6+ {[%emt 0:00:58]} Rxg6 {[%emt 0:00:04]} 99. Ng3 {[%emt 0:00:26]} Rh6 {[%emt 0:00:20]} 100. Ra8 {[%emt 0:00:08]} Rh8 {[%emt 0:00:59]} 101. Nxh5+ {[%emt 0:02:59]} Kg6 {[%emt 0:00:01]} 102. Kg4 {[%emt 0:00:34]} Rf8 {[%emt 0:00:15]} 103. f4 {[%emt 0:00:32]} exf4 {[%emt 0:00:54]} 104. Nxf4+ {[%emt 0:00:13]} Rxf4+ {[%emt 0:02:46]} 105. Kxf4 {[%emt 0:00:13]} Bxh4 {[%emt 0:00:00]} 106. Rc8 {[%emt 0:01:08]} Be1 {[%emt 0:00:07]} 107. Rxc7 {[%emt 0:00:56]} Bxb4 {[%emt 0:00:03]} 108. Rc6 {[%emt 0:00:08]} Bc5 {[%emt 0:00:35]} 109. e5 {[%emt 0:00:08]} Kf7 {[%emt 0:01:07]} 110. exd6 {[%emt 0:00:15]} Ke8 {[%emt 0:00:01]} 111. Ke5 {[%emt 0:00:24]} Kd7 {[%emt 0:01:35]} 112. Rc7+ {[%emt 0:00:08]} Kd8 113. Ke6 {[%emt 0:00:38]} 1-0

[Event "8. Arber-Schachopen 2019"]
[Site "Bodenmais"]
[Date "2019.07.31"]
[Round "5.21"]
[White "Simacek, Vaclav"]
[Black "Medunova, Vera"]
[Result "0-1"]
[ECO "B20"]
[WhiteElo "1809"]
[BlackElo "2093"]
[Annotator "NA"]
[PlyCount "148"]
[EventDate "2019.07.27"]
[EventCountry "GER"]
[SourceTitle "playchess.com"]
[Source "ChessBase"]
[SourceQuality "1"]
[TimeControl "40/5400+30:1800+30"]

1. e4 {[%emt 0:00:28]} c5 {[%emt 0:00:00]} 2. b4 {[%emt 0:00:05]} cxb4 {[%emt 0:00:00]} 3. Nf3 {[%emt 0:00:05]} e6 {[%emt 0:01:18]} 4. d4 {[%emt 0:00:17]} Nf6 {[%emt 0:01:10]} 5. Bd3 {[%emt 0:03:06]} Be7 {[%emt 0:04:51]} 6. a3 {[%emt 0:00:33]} bxa3 {[%emt 0:01:14]} 7. O-O {[%emt 0:00:28]} O-O {[%emt 0:03:26]} 8. c4 {[%emt 0:02:00]} b6 {[%emt 0:02:10]} 9. e5 {[%emt 0:02:26]} Ne8 {[%emt 0:03:29]} 10. Be4 {[%emt 0:00:32]} Nc6 {[%emt 0:02:34]} 11. d5 {[%emt 0:02:02]} f5 {[%emt 0:01:35]} 12. Bc2 {[%emt 0:03:53]} Nb4 {[%emt 0:01:22]} 13. d6 {[%emt 0:00:41]} Nxd6 {[%emt 0:00:51]} 14. exd6 {[%emt 0:01:03]} Bf6 {[%emt 0:04:58]} 15. Rxa3 {[%emt 0:00:22]} Bb7 {[%emt 0:00:55]} 16. Ba4 {[%emt 0:09:01]} Qc8 {[%emt 0:07:42]} 17. Qe2 {[%emt 0:10:20]} Na6 {[%emt 0:02:56]} 18. Nc3 {[%emt 0:04:29]} Nc5 {[%emt 0:01:51]} 19. Nb5 {[%emt 0:01:17]} Nxa4 {[%emt 0:04:22]} 20. Rxa4 {[%emt 0:00:28]} Qc6 {[%emt 0:02:22]} 21. Rxa7 {[%emt 0:19:30]} Rxa7 {[%emt 0:03:51]} 22. Nxa7 {[%emt 0:00:32]} Qxd6 {[%emt 0:00:16]} 23. Rd1 {[%emt 0:00:11]} Qc7 {[%emt 0:08:56]} 24. Nb5 {[%emt 0:01:52]} Bxf3 {[%emt 0:08:12]} 25. gxf3 {[%emt 0:08:43]} Qb7 {[%emt 0:00:39]} 26. Ba3 {[%emt 0:00:26]} Ra8 {[%emt 0:00:45]} 27. Bd6 {[%emt 0:14:01]} Qc6 {[%emt 0:07:51]} 28. Bc7 {[%emt 0:06:36]} Ra4 {[%emt 0:06:37]} 29. Rd6 {[%emt 0:00:48]} Qxc4 {[%emt 0:02:02]} 30. Qxc4 {[%emt 0:00:15]} Rxc4 {[%emt 0:00:05]} 31. Rxb6 {[%emt 0:00:06]} Rc1+ {[%emt 0:02:50]} 32. Kg2 {[%emt 0:00:03]} Kf7 {[%emt 0:01:40]} 33. Bd6 {[%emt 0:02:04]} e5 {[%emt 0:01:22]} 34. Ba3 {[%emt 0:00:58]} Rd1 {[%emt 0:02:13]} 35. Nd6+ {[%emt 0:01:26]} Kg6 {[%emt 0:00:47]} 36. Ne8 {[%emt 0:00:55]} Kf7 {[%emt 0:05:00]} 37. Nd6+ {[%emt 0:01:27]} Kg6 {[%emt 0:00:22]} 38. Ne8 {[%emt 0:00:13]} Kf7 {[%emt 0:00:05]} 39. Nxf6 {[%emt 0:00:18]} gxf6 {[%emt 0:00:05]} 40. f4 {[%emt 0:01:21]} d5 {[%emt 0:01:37]} 41. h4 {[%emt 0:05:13]} h5 {[%emt 0:00:00]} 42. Rd6 {[%emt 0:01:20]} d4 {[%emt 0:00:44]} 43. Bb4 {[%emt 0:08:25]} Rb1 {[%emt 0:02:00]} 44. Bd2 {[%emt 0:02:05]} Rb2 {[%emt 0:02:58]} 45. Be1 {[%emt 0:00:12]} Ke7 {[%emt 0:00:46]} 46. fxe5 {[%emt 0:00:15]} fxe5 {[%emt 0:00:11]} 47. Rh6 {[%emt 0:00:05]} d3 {[%emt 0:01:01]} 48. Rxh5 {[%emt 0:00:23]} Ke6 {[%emt 0:00:29]} 49. Kf3 {[%emt 0:01:31]} d2 {[%emt 0:00:24]} 50. Bxd2 {[%emt 0:00:44]} Rxd2 {[%emt 0:00:05]} 51. Rh6+ {[%emt 0:00:22]} Kd5 {[%emt 0:02:40]} 52. Rh8 {[%emt 0:00:51]} e4+ {[%emt 0:02:36]} 53. Ke3 {[%emt 0:01:01]} Rd3+ {[%emt 0:00:11]} 54. Ke2 {[%emt 0:00:06]} Ke5 {[%emt 0:01:56]} 55. h5 {[%emt 0:00:33]} Rh3 {[%emt 0:03:08]} 56. h6 {[%emt 0:00:15]} Kf6 {[%emt 0:01:45]} 57. Kf1 {[%emt 0:06:48]} Rh5 {[%emt 0:01:31]} 58. Ke2 {[%emt 0:01:47]} Kg6 {[%emt 0:01:25]} 59. Rg8+ {[%emt 0:04:34]} Kxh6 {[%emt 0:01:15]} 60. Rg3 {[%emt 0:00:53]} Rg5 {[%emt 0:02:48]} 61. Rh3+ {[%emt 0:01:03]} Kg6 {[%emt 0:00:13]} 62. f3 {[%emt 0:00:26]} Rg2+ {[%emt 0:01:45]} 63. Kf1 {[%emt 0:00:08]} exf3 {[%emt 0:01:40]} 64. Rxf3 {[%emt 0:00:07]} Ra2 {[%emt 0:00:05]} 65. Rg3+ {[%emt 0:00:14]} Kf6 {[%emt 0:00:24]} 66. Rg8 {[%emt 0:00:07]} Ke5 {[%emt 0:01:07]} 67. Rb8 {[%emt 0:00:39]} Ke4 {[%emt 0:01:23]} 68. Rb4+ {[%emt 0:00:16]} Kf3 {[%emt 0:00:12]} 69. Rb3+ {[%emt 0:00:21]} Kg4 {[%emt 0:00:08]} 70. Rb4+ {[%emt 0:00:05]} f4 {[%emt 0:00:05]} 71. Rb8 {[%emt 0:00:55]} Kg3 {[%emt 0:00:30]} 72. Rb7 {[%emt 0:01:31]} Ra1+ {[%emt 0:00:58]} 73. Ke2 {[%emt 0:00:07]} f3+ {[%emt 0:00:10]} 74. Kd2 {[%emt 0:01:28]} f2 {[%emt 0:00:09]} 0-1

[Event "8. Arber-Schachopen 2019"]
[Site "Bodenmais"]
[Date "2019.07.31"]
[Round "5.22"]
[White "Eggeling, Philipp"]
[Black "Schwenkreis, Thomas"]
[Result "1-0"]
[ECO "A53"]
[WhiteElo "1869"]
[BlackElo "2048"]
[Annotator "NA"]
[PlyCount "155"]
[EventDate "2019.07.27"]
[EventCountry "GER"]
[SourceTitle "playchess.com"]
[Source "ChessBase"]
[SourceQuality "1"]
[TimeControl "40/5400+30:1800+30"]

1. d4 {[%emt 0:00:00]} Nf6 {[%emt 0:00:00]} 2. c4 {[%emt 0:00:00]} d6 3. Nc3 {[%emt 0:00:03]} Nc6 {[%emt 0:00:04]} 4. Nf3 {[%emt 0:00:12]} Bg4 {[%emt 0:00:50]} 5. g3 {[%emt 0:03:02]} Qc8 {[%emt 0:00:59]} 6. h3 {[%emt 0:00:45]} Bd7 {[%emt 0:00:06]} 7. Bg2 {[%emt 0:00:38]} g6 {[%emt 0:00:08]} 8. Bg5 {[%emt 0:01:16]} Bg7 {[%emt 0:00:01]} 9. Qd2 {[%emt 0:00:32]} h6 {[%emt 0:00:52]} 10. Be3 {[%emt 0:01:21]} a6 {[%emt 0:01:10]} 11. d5 {[%emt 0:00:27]} Na5 {[%emt 0:00:33]} 12. b3 {[%emt 0:02:31]} c5 {[%emt 0:00:32]} 13. dxc6 {[%emt 0:00:49]} Nxc6 {[%emt 0:00:01]} 14. Rc1 {[%emt 0:01:00]} Rb8 {[%emt 0:03:45]} 15. Nd5 {[%emt 0:00:55]} Ne4 {[%emt 0:07:48]} 16. Qc2 {[%emt 0:05:20]} Nc5 {[%emt 0:00:37]} 17. Nb6 {[%emt 0:01:00]} Qc7 {[%emt 0:03:08]} 18. Nxd7 {[%emt 0:00:03]} Nxd7 {[%emt 0:00:19]} 19. O-O {[%emt 0:00:33]} O-O {[%emt 0:00:33]} 20. Rfd1 {[%emt 0:00:25]} a5 {[%emt 0:02:24]} 21. Qd2 {[%emt 0:02:03]} Kh7 {[%emt 0:01:26]} 22. Ne1 {[%emt 0:01:53]} Nf6 {[%emt 0:02:50]} 23. Nd3 {[%emt 0:01:05]} Rfd8 {[%emt 0:02:04]} 24. Nf4 {[%emt 0:00:26]} e6 {[%emt 0:01:13]} 25. Nd5 {[%emt 0:02:21]} exd5 {[%emt 0:02:25]} 26. cxd5 {[%emt 0:00:11]} Nxd5 {[%emt 0:00:06]} 27. Qxd5 {[%emt 0:00:51]} Qe7 {[%emt 0:01:06]} 28. h4 {[%emt 0:03:40]} Ne5 {[%emt 0:14:34]} 29. Bb6 {[%emt 0:04:13]} Rd7 {[%emt 0:00:39]} 30. Bxa5 {[%emt 0:00:29]} Ra8 {[%emt 0:01:49]} 31. Qd2 {[%emt 0:03:23]} h5 {[%emt 0:04:23]} 32. Bc3 {[%emt 0:03:15]} Bh6 {[%emt 0:01:44]} 33. e3 {[%emt 0:04:08]} Rad8 {[%emt 0:02:27]} 34. Qe2 {[%emt 0:03:53]} d5 {[%emt 0:02:10]} 35. Bd4 {[%emt 0:11:39]} Nc6 {[%emt 0:00:22]} 36. Bc5 {[%emt 0:09:45]} Qe6 {[%emt 0:00:02]} 37. Rc2 {[%emt 0:00:25]} Ne5 {[%emt 0:07:04]} 38. Bd4 {[%emt 0:00:54]} Nc6 {[%emt 0:00:14]} 39. Bb6 {[%emt 0:00:37]} Re8 {[%emt 0:00:53]} 40. Rcd2 {[%emt 0:01:12]} Ne5 {[%emt 0:01:34]} 41. Bd4 {[%emt 0:30:11]} Nc6 {[%emt 0:33:41]} 42. Qf3 {[%emt 0:00:48]} f5 {[%emt 0:01:36]} 43. Bc3 {[%emt 0:01:37]} d4 {[%emt 0:04:04]} 44. Bxd4 {[%emt 0:00:33]} Red8 {[%emt 0:00:17]} 45. Bc3 {[%emt 0:01:01]} Rxd2 {[%emt 0:00:30]} 46. Rxd2 {[%emt 0:00:03]} Rxd2 {[%emt 0:01:10]} 47. Bxd2 {[%emt 0:00:02]} Bg7 {[%emt 0:00:01]} 48. Qd5 {[%emt 0:00:59]} Qf6 {[%emt 0:00:50]} 49. a4 {[%emt 0:02:10]} Qa1+ {[%emt 0:00:19]} 50. Bf1 {[%emt 0:01:58]} Qd1 {[%emt 0:00:02]} 51. Kg2 {[%emt 0:01:22]} Ne5 {[%emt 0:02:15]} 52. a5 {[%emt 0:03:19]} Nf3 {[%emt 0:03:25]} 53. Qxf3 {[%emt 0:01:07]} Qxd2 {[%emt 0:00:01]} 54. Qxb7 {[%emt 0:00:18]} Qxa5 {[%emt 0:00:02]} 55. b4 {[%emt 0:00:12]} Qd8 {[%emt 0:00:31]} 56. b5 {[%emt 0:00:43]} Kh6 {[%emt 0:01:10]} 57. Bc4 {[%emt 0:01:15]} Be5 {[%emt 0:00:59]} 58. Qd5 {[%emt 0:00:51]} Qxd5+ {[%emt 0:00:49]} 59. Bxd5 {[%emt 0:00:01]} Bc7 {[%emt 0:00:02]} 60. f4 {[%emt 0:00:29]} Kg7 {[%emt 0:00:24]} 61. Kf3 {[%emt 0:00:42]} Kf6 {[%emt 0:00:35]} 62. e4 {[%emt 0:01:02]} fxe4+ {[%emt 0:00:06]} 63. Kxe4 {[%emt 0:00:27]} Bb6 {[%emt 0:00:06]} 64. Bc6 {[%emt 0:00:35]} Ba7 {[%emt 0:00:15]} 65. Be8 {[%emt 0:01:07]} Bb6 {[%emt 0:00:08]} 66. Bd7 {[%emt 0:01:11]} Ba7 {[%emt 0:00:06]} 67. g4 {[%emt 0:02:27]} hxg4 {[%emt 0:00:12]} 68. Bxg4 {[%emt 0:00:15]} Bb6 {[%emt 0:00:37]} 69. h5 {[%emt 0:00:19]} gxh5 {[%emt 0:00:08]} 70. Bxh5 {[%emt 0:00:19]} Bc7 {[%emt 0:02:19]} 71. f5 {[%emt 0:00:31]} Bb6 {[%emt 0:00:29]} 72. Bg4 {[%emt 0:01:40]} Bd8 {[%emt 0:00:32]} 73. Kd5 {[%emt 0:00:21]} Ba5 {[%emt 0:06:08]} 74. Kc6 {[%emt 0:00:52]} Ke7 {[%emt 0:00:16]} 75. b6 {[%emt 0:01:51]} Bc3 {[%emt 0:00:37]} 76. Kc7 {[%emt 0:01:27]} Ba5 {[%emt 0:00:36]} 77. Kb7 {[%emt 0:00:24]} Bc3 {[%emt 0:00:36]} 78. Kc8 {[%emt 0:00:12]} 1-0

[Event "8. Arber-Schachopen 2019"]
[Site "Bodenmais"]
[Date "2019.07.31"]
[Round "5.23"]
[White "McPherson, Elisha"]
[Black "Neiss, Josef Martin"]
[Result "0-1"]
[ECO "B15"]
[WhiteElo "1705"]
[BlackElo "2041"]
[Annotator "NA"]
[PlyCount "94"]
[EventDate "2019.07.27"]
[EventCountry "GER"]
[SourceTitle "playchess.com"]
[Source "ChessBase"]
[SourceQuality "1"]
[TimeControl "40/5400+30:1800+30"]

1. e4 {[%emt 0:05:43]} c6 {[%emt 0:01:01]} 2. d4 {[%emt 0:00:09]} d5 {[%emt 0:00:03]} 3. Nc3 {[%emt 0:00:05]} dxe4 {[%emt 0:00:08]} 4. Nxe4 {[%emt 0:00:02]} Nf6 {[%emt 0:00:09]} 5. Nxf6+ {[%emt 0:00:06]} exf6 {[%emt 0:00:02]} 6. c3 {[%emt 0:00:12]} Bd6 {[%emt 0:02:06]} 7. Bd3 {[%emt 0:00:21]} O-O {[%emt 0:00:14]} 8. Ne2 {[%emt 0:00:07]} Bg4 {[%emt 0:04:03]} 9. Qc2 {[%emt 0:01:45]} h6 {[%emt 0:03:40]} 10. O-O {[%emt 0:01:25]} Nd7 {[%emt 0:00:55]} 11. h3 {[%emt 0:05:53]} Be6 {[%emt 0:01:01]} 12. Bf4 {[%emt 0:05:23]} Qc7 {[%emt 0:00:46]} 13. Bxd6 {[%emt 0:00:18]} Qxd6 {[%emt 0:00:02]} 14. Ng3 {[%emt 0:02:03]} Rfe8 {[%emt 0:03:54]} 15. Nf5 {[%emt 0:08:33]} Bxf5 {[%emt 0:04:02]} 16. Bxf5 {[%emt 0:00:03]} Re7 {[%emt 0:00:18]} 17. Rfe1 {[%emt 0:13:43]} Rae8 {[%emt 0:00:22]} 18. Qd2 {[%emt 0:02:52]} Nb6 {[%emt 0:04:17]} 19. Rxe7 {[%emt 0:05:10]} Qxe7 {[%emt 0:04:21]} 20. Bd3 {[%emt 0:02:17]} Nd5 {[%emt 0:03:09]} 21. Kf1 {[%emt 0:06:04]} Qd6 {[%emt 0:03:55]} 22. Re1 {[%emt 0:04:08]} Re6 {[%emt 0:00:12]} 23. Bf5 {[%emt 0:04:14]} Rxe1+ {[%emt 0:02:44]} 24. Qxe1 {[%emt 0:00:39]} g6 {[%emt 0:00:33]} 25. Be4 {[%emt 0:04:33]} Nf4 {[%emt 0:07:16]} 26. Qe3 {[%emt 0:01:20]} Kg7 {[%emt 0:08:22]} 27. c4 {[%emt 0:08:38]} f5 {[%emt 0:06:04]} 28. Bf3 {[%emt 0:02:18]} b6 {[%emt 0:12:10]} 29. b3 {[%emt 0:04:53]} c5 {[%emt 0:02:47]} 30. dxc5 {[%emt 0:03:53]} bxc5 {[%emt 0:00:11]} 31. h4 {[%emt 0:01:02]} Ne6 {[%emt 0:02:03]} 32. Bd5 {[%emt 0:01:13]} Nf4 {[%emt 0:06:21]} 33. Bf3 {[%emt 0:00:59]} Kf6 {[%emt 0:03:26]} 34. g3 {[%emt 0:00:23]} Qd3+ {[%emt 0:01:10]} 35. Qxd3 {[%emt 0:01:37]} Nxd3 {[%emt 0:00:02]} 36. a3 {[%emt 0:00:25]} Ke5 {[%emt 0:01:50]} 37. Bd1 {[%emt 0:01:20]} Kd4 {[%emt 0:00:39]} 38. Be2 {[%emt 0:02:32]} a5 {[%emt 0:00:37]} 39. Bd1 {[%emt 0:01:34]} Kc3 {[%emt 0:01:00]} 40. f4 {[%emt 0:00:42]} Nb2 {[%emt 0:01:21]} 41. Ke2 {[%emt 0:14:47]} Nxd1 {[%emt 0:00:00]} 42. Kxd1 {[%emt 0:00:05]} Kxb3 {[%emt 0:00:05]} 43. Kd2 {[%emt 0:00:01]} Kxc4 {[%emt 0:00:41]} 44. Kc2 {[%emt 0:00:09]} h5 {[%emt 0:00:43]} 45. Kb2 {[%emt 0:00:39]} Kd3 {[%emt 0:00:17]} 46. Kb3 {[%emt 0:00:49]} c4+ {[%emt 0:00:14]} 47. Kb2 {[%emt 0:00:06]} Kd2 {[%emt 0:00:11]} 0-1

[Event "8. Arber-Schachopen 2019"]
[Site "Bodenmais"]
[Date "2019.07.31"]
[Round "5.24"]
[White "Glaser, Max"]
[Black "Liebold, Aaron"]
[Result "1/2-1/2"]
[ECO "B51"]
[WhiteElo "1949"]
[BlackElo "1944"]
[Annotator "NA"]
[PlyCount "61"]
[EventDate "2019.07.27"]
[EventCountry "GER"]
[SourceTitle "playchess.com"]
[Source "ChessBase"]
[SourceQuality "1"]
[TimeControl "40/5400+30:1800+30"]

1. e4 {[%emt 0:00:00]} c5 {[%emt 0:00:00]} 2. Nf3 {[%emt 0:00:00]} d6 {[%emt 0:00:00]} 3. Bb5+ {[%emt 0:00:00]} Nd7 {[%emt 0:00:34]} 4. d4 {[%emt 0:00:00]} cxd4 {[%emt 0:00:51]} 5. Qxd4 {[%emt 0:00:00]} Ngf6 {[%emt 0:01:10]} 6. Bg5 {[%emt 0:00:44]} g6 {[%emt 0:02:28]} 7. Bxf6 {[%emt 0:01:17]} exf6 {[%emt 0:00:11]} 8. c4 {[%emt 0:04:53]} Be7 {[%emt 0:02:09]} 9. Nc3 {[%emt 0:00:34]} O-O {[%emt 0:00:30]} 10. Bxd7 {[%emt 0:02:00]} Bxd7 {[%emt 0:00:42]} 11. O-O {[%emt 0:01:06]} Be6 {[%emt 0:02:40]} 12. Nd5 {[%emt 0:03:18]} Bxd5 {[%emt 0:03:03]} 13. Qxd5 {[%emt 0:00:37]} Qb6 {[%emt 0:01:19]} 14. b3 {[%emt 0:02:17]} Rfd8 {[%emt 0:01:25]} 15. Qd3 {[%emt 0:11:00]} Rac8 {[%emt 0:05:33]} 16. Rfd1 {[%emt 0:01:40]} Rc5 {[%emt 0:05:40]} 17. Rac1 {[%emt 0:08:21]} f5 {[%emt 0:02:58]} 18. Rc2 {[%emt 0:02:26]} Bf6 {[%emt 0:15:37]} 19. Rcd2 {[%emt 0:07:18]} Kf8 {[%emt 0:13:36]} 20. exf5 {[%emt 0:03:52]} Rxf5 {[%emt 0:02:54]} 21. Qc2 {[%emt 0:03:25]} Qc6 {[%emt 0:05:54]} 22. Rd5 {[%emt 0:02:32]} Rxd5 {[%emt 0:01:27]} 23. Rxd5 {[%emt 0:00:12]} Re8 {[%emt 0:02:36]} 24. Qd2 {[%emt 0:02:31]} Re6 {[%emt 0:00:51]} 25. g3 {[%emt 0:06:50]} h5 {[%emt 0:03:03]} 26. Qf4 {[%emt 0:03:54]} Ke7 {[%emt 0:02:55]} 27. Ng5 {[%emt 0:04:13]} Bxg5 {[%emt 0:04:53]} 28. Qxg5+ {[%emt 0:00:11]} Ke8 {[%emt 0:01:46]} 29. Qd2 {[%emt 0:08:02]} Ke7 {[%emt 0:01:06]} 30. Qg5+ Ke8 31. c5 {[%emt 0:01:07]} 1/2-1/2